[Event "Open international de Salon de Provence"]
[Site "Salon de Provence, France"]
[Date "2024.07.09"]
[Round "5.5"]
[White "Rival, None"]
[Black "Tarisse, Mateo"]
[Result "1/2-1/2"]
[WhiteElo "1640"]
[BlackElo "1636"]
[PlyCount "68"]
[EventDate "2024.??.??"]
[TimeControl "1"]

1. d4 {[%emt 0:00:00]} f5 {[%emt 0:00:00]} 2. Nc3 {[%emt 0:00:00]} Nf6 {
[%emt 0:00:00]} 3. Bg5 {[%emt 0:00:00]} e6 {[%emt 0:00:00]} 4. e4 {[%emt 0:00:
00]} h6 {[%emt 0:00:00]} 5. Bxf6 {[%emt 0:00:00]} Qxf6 {[%emt 0:00:00]} 6. exf5
{[%emt 0:00:00]} Qxf5 {[%emt 0:00:00]} 7. Bd3 {[%emt 0:00:00]} Qf7 {[%emt 0:00:
00]} 8. Qg4 {[%emt 0:00:00]} g5 {[%emt 0:00:00]} 9. O-O-O {[%emt 0:00:00]} Qf4+
{[%emt 0:00:00]} 10. Qxf4 {[%emt 0:00:00]} gxf4 {[%emt 0:00:00]} 11. Nb5 {
[%emt 0:03:51]} Na6 {[%emt 0:00:00]} 12. Ne2 {[%emt 0:00:00]} c6 {[%emt 0:00:
00]} 13. Nbc3 {[%emt 0:00:00]} Bd6 {[%emt 0:00:00]} 14. Ne4 {[%emt 0:00:00]}
Bc7 {[%emt 0:00:00]} 15. Nf6+ {[%emt 0:00:00]} Ke7 {[%emt 0:00:00]} 16. Nh5 {
[%emt 0:00:00]} Rf8 {[%emt 0:00:00]} 17. c3 {[%emt 0:00:00]} f3 {[%emt 0:00:00]
} 18. gxf3 {[%emt 0:00:00]} Rxf3 {[%emt 0:00:00]} 19. Neg3 {[%emt 0:00:00]}
Rxf2 {[%emt 0:00:00]} 20. Ne4 {[%emt 0:00:00]} Rxh2 {[%emt 0:00:00]} 21. Rxh2 {
[%emt 0:00:00]} Bxh2 {[%emt 0:00:00]} 22. Rh1 {[%emt 0:00:00]} Bc7 {[%emt 0:00:
00]} 23. Rg1 {[%emt 0:00:00]} b5 {[%emt 0:00:00]} 24. Rg7+ {[%emt 0:00:00]} Kd8
{[%emt 0:00:00]} 25. Nef6 {[%emt 0:00:00]} Ba5 {[%emt 0:00:00]} 26. a4 {
[%emt 0:00:00]} Rb8 {[%emt 0:00:00]} 27. b4 {[%emt 0:00:00]} Bxb4 {[%emt 0:00:
00]} 28. cxb4 {[%emt 0:00:00]} Nxb4 {[%emt 0:00:00]} 29. Rg8+ {[%emt 0:00:00]}
Kc7 {[%emt 0:00:00]} 30. Ne8+ {[%emt 0:00:00]} Kb6 {[%emt 0:00:00]} 31. Be2 {
[%emt 0:00:00]} bxa4 {[%emt 0:00:00]} 32. Nd6 {[%emt 0:00:00]} Kc7 {[%emt 0:00:
00]} 33. Ne8+ {[%emt 0:00:00]} Kb6 {[%emt 0:00:00]} 34. Nd6 Kc7 {[%emt 0:00:00]
} 1/2-1/2

[Event "Open international de Salon de Provence"]
[Site "Salon de Provence, France"]
[Date "2024.07.09"]
[Round "5.6"]
[White "Bicais, Noam"]
[Black "Metzger, Raphael"]
[Result "0-1"]
[WhiteElo "1603"]
[BlackElo "1601"]
[PlyCount "96"]
[EventDate "2024.??.??"]
[TimeControl "1"]

1. e4 {[%emt 0:00:00]} e5 {[%emt 0:00:00]} 2. Nf3 {[%emt 0:00:00]} Nc6 {
[%emt 0:00:00]} 3. d4 {[%emt 0:00:00]} exd4 {[%emt 0:00:00]} 4. Nxd4 {[%emt 0:
00:00]} Nf6 {[%emt 0:00:00]} 5. Nxc6 {[%emt 0:00:00]} bxc6 {[%emt 0:00:00]} 6.
e5 {[%emt 0:00:00]} Qe7 {[%emt 0:00:00]} 7. Qe2 {[%emt 0:00:00]} Nd5 {[%emt 0:
00:00]} 8. c4 {[%emt 0:00:00]} Ba6 {[%emt 0:00:00]} 9. b3 {[%emt 0:00:00]} Qh4
{[%emt 0:00:00]} 10. Qd1 {[%emt 0:00:00]} Qe4+ {[%emt 0:00:00]} 11. Be2 {
[%emt 0:00:00]} Qxe5 {[%emt 0:00:00]} 12. cxd5 {[%emt 0:00:00]} Qxa1 {[%emt 0:
00:00]} 13. Bxa6 {[%emt 0:00:00]} Qxb1 {[%emt 0:00:00]} 14. O-O {[%emt 0:00:00]
} Qg6 {[%emt 0:00:00]} 15. Re1+ {[%emt 0:00:00]} Kd8 {[%emt 0:00:00]} 16. Bb7 {
[%emt 0:00:00]} Rb8 {[%emt 0:00:00]} 17. dxc6 {[%emt 0:00:00]} Bd6 {[%emt 0:00:
00]} 18. Qd4 {[%emt 0:00:00]} Re8 {[%emt 0:00:00]} 19. Be3 {[%emt 0:00:00]} Ke7
{[%emt 0:00:00]} 20. Bg5+ {[%emt 0:00:00]} Kf8 {[%emt 0:00:00]} 21. Rxe8+ {
[%emt 0:00:00]} Rxe8 {[%emt 0:00:00]} 22. g3 {[%emt 0:00:00]} Qxg5 {[%emt 0:00:
00]} 23. cxd7 {[%emt 0:00:00]} Rd8 {[%emt 0:00:00]} 24. Bc8 {[%emt 0:00:00]}
Qc1+ {[%emt 0:00:00]} 25. Kg2 {[%emt 0:00:00]} Qc6+ {[%emt 0:00:00]} 26. Kg1 {
[%emt 0:00:00]} Rxd7 {[%emt 0:00:00]} 27. Bxd7 {[%emt 0:00:00]} Qxd7 {[%emt 0:
00:00]} 28. Qxa7 {[%emt 0:00:00]} Qf5 {[%emt 0:00:00]} 29. Qb8+ {[%emt 0:00:00]
} Ke7 {[%emt 0:00:00]} 30. a4 {[%emt 0:00:00]} Qc5 {[%emt 0:00:00]} 31. Qa8 {
[%emt 0:00:00]} Kd7 {[%emt 0:00:00]} 32. Qf3 {[%emt 0:00:00]} Qc1+ {[%emt 0:00:
00]} 33. Kg2 {[%emt 0:00:00]} Qc6 {[%emt 0:00:00]} 34. h4 {[%emt 0:00:00]}
Qxf3+ {[%emt 0:00:00]} 35. Kxf3 {[%emt 0:00:00]} Bc5 {[%emt 0:00:00]} 36. Ke2 {
[%emt 0:00:00]} Kc6 {[%emt 0:00:00]} 37. f3 {[%emt 0:00:00]} Kb6 {[%emt 0:00:
00]} 38. g4 {[%emt 0:00:00]} Ka5 {[%emt 0:00:00]} 39. Kd3 {[%emt 0:00:00]} Kb4
{[%emt 0:00:00]} 40. Kc2 {[%emt 0:00:00]} Be3 {[%emt 0:00:00]} 41. Kb2 {
[%emt 0:00:00]} f6 {[%emt 0:00:56]} 42. Kc2 {[%emt 0:00:17]} Bd4 {[%emt 0:00:
00]} 43. a5 {[%emt 0:00:00]} Kxa5 {[%emt 0:00:00]} 44. Kd3 {[%emt 0:00:00]} Be5
{[%emt 0:00:00]} 45. Kc4 {[%emt 0:00:00]} Kb6 {[%emt 0:00:00]} 46. h5 {[%emt 0:
00:00]} Kc6 {[%emt 0:00:00]} 47. b4 {[%emt 0:00:00]} Kd6 {[%emt 0:00:00]} 48.
b5 {[%emt 0:00:00]} Ke6 {[%emt 0:00:00]} 0-1

[Event "Open international de Salon de Provence"]
[Site "Salon de Provence, France"]
[Date "2024.07.09"]
[Round "5.7"]
[White "Fanget, Sullys"]
[Black "Vrillet, Loan"]
[Result "1-0"]
[WhiteElo "1559"]
[BlackElo "1676"]
[PlyCount "53"]
[EventDate "2024.??.??"]
[TimeControl "1"]

1. e4 {[%emt 0:00:00]} c6 {[%emt 0:00:00]} 2. d4 {[%emt 0:00:00]} d5 {[%emt 0:
00:00]} 3. e5 {[%emt 0:00:00]} Bf5 {[%emt 0:00:00]} 4. Nf3 {[%emt 0:00:00]} e6
{[%emt 0:00:00]} 5. Be2 {[%emt 0:00:00]} c5 {[%emt 0:00:00]} 6. c4 {[%emt 0:00:
00]} Bxb1 {[%emt 0:00:00]} 7. Rxb1 {[%emt 0:00:00]} cxd4 {[%emt 0:00:00]} 8.
Nxd4 {[%emt 0:00:00]} Ne7 {[%emt 0:00:00]} 9. Qa4+ {[%emt 0:00:00]} Qd7 {
[%emt 0:00:00]} 10. Nb5 {[%emt 0:00:00]} Nec6 {[%emt 0:00:00]} 11. O-O {
[%emt 0:00:00]} Na6 {[%emt 0:00:00]} 12. cxd5 {[%emt 0:00:00]} Qxd5 {[%emt 0:
00:00]} 13. Qxa6 {[%emt 0:00:00]} bxa6 {[%emt 0:00:00]} 14. Nc7+ {[%emt 0:00:
00]} Kd7 {[%emt 0:00:00]} 15. Nxd5 {[%emt 0:00:00]} exd5 {[%emt 0:00:00]} 16.
Bf4 {[%emt 0:00:00]} h5 {[%emt 0:00:00]} 17. Rbc1 {[%emt 0:00:00]} Be7 {
[%emt 0:00:00]} 18. Bxa6 {[%emt 0:00:00]} g5 {[%emt 0:00:00]} 19. Bb5 {[%emt 0:
00:00]} Rhc8 {[%emt 0:00:00]} 20. Be3 {[%emt 0:00:00]} a6 {[%emt 0:00:00]} 21.
Ba4 {[%emt 0:00:00]} Rab8 {[%emt 0:00:00]} 22. b3 {[%emt 0:00:00]} Rb4 {
[%emt 0:00:00]} 23. Rfd1 {[%emt 0:00:00]} Rxa4 {[%emt 0:00:00]} 24. bxa4 {
[%emt 0:00:00]} Ke6 {[%emt 0:00:00]} 25. f4 {[%emt 0:00:00]} g4 {[%emt 0:00:00]
} 26. Rc2 {[%emt 0:00:00]} Ba3 {[%emt 0:00:00]} 27. Rb1 {[%emt 0:00:00]} 1-0

[Event "Open international de Salon de Provence"]
[Site "Salon de Provence, France"]
[Date "2024.07.09"]
[Round "5.8"]
[White "Petillon, Alexis"]
[Black "Biard, Noah"]
[Result "0-1"]
[WhiteElo "1544"]
[BlackElo "1574"]
[PlyCount "88"]
[EventDate "2024.??.??"]
[TimeControl "1"]

1. e4 {[%emt 0:00:00]} c5 {[%emt 0:00:00]} 2. Nf3 {[%emt 0:00:00]} Nc6 {
[%emt 0:00:00]} 3. Bb5 {[%emt 0:00:00]} e6 {[%emt 0:00:00]} 4. c3 {[%emt 0:00:
00]} Nf6 {[%emt 0:00:00]} 5. e5 {[%emt 0:00:00]} Nd5 {[%emt 0:00:00]} 6. d4 {
[%emt 0:00:00]} cxd4 {[%emt 0:00:00]} 7. c4 {[%emt 0:00:00]} Nde7 {[%emt 0:00:
00]} 8. Bg5 {[%emt 0:00:00]} Qb6 {[%emt 0:00:00]} 9. Qc2 {[%emt 0:00:00]} Ng6 {
[%emt 0:00:00]} 10. Bxc6 {[%emt 0:00:00]} bxc6 {[%emt 0:00:00]} 11. Nbd2 {
[%emt 0:00:00]} Bb7 {[%emt 0:00:00]} 12. a3 {[%emt 0:00:00]} c5 {[%emt 0:00:00]
} 13. O-O {[%emt 0:00:00]} h6 {[%emt 0:00:00]} 14. Bh4 {[%emt 0:00:00]} Nxh4 {
[%emt 0:00:00]} 15. Nxh4 {[%emt 0:00:00]} Be7 {[%emt 0:00:00]} 16. Nhf3 {
[%emt 0:00:00]} O-O {[%emt 0:00:00]} 17. Rfe1 {[%emt 0:00:00]} Rad8 {[%emt 0:
00:00]} 18. Rab1 {[%emt 0:00:00]} a5 {[%emt 0:00:00]} 19. h3 {[%emt 0:00:00]}
d5 {[%emt 0:00:00]} 20. exd6 {[%emt 0:00:00]} Bxd6 {[%emt 0:00:00]} 21. Qd3 {
[%emt 0:00:00]} Rfe8 {[%emt 0:00:00]} 22. Ne4 {[%emt 0:00:00]} Bf8 {[%emt 0:00:
00]} 23. g4 {[%emt 0:00:00]} e5 {[%emt 0:00:00]} 24. Rbd1 {[%emt 0:00:00]} Re6
{[%emt 0:00:00]} 25. Rd2 {[%emt 0:00:00]} Rde8 {[%emt 0:00:00]} 26. Rde2 {
[%emt 0:00:00]} g6 {[%emt 0:00:00]} 27. Ned2 {[%emt 0:00:00]} Bg7 {[%emt 0:00:
00]} 28. h4 {[%emt 0:00:00]} Ba8 {[%emt 0:00:00]} 29. b3 {[%emt 0:00:00]} Qb7 {
[%emt 0:00:00]} 30. Ne4 {[%emt 0:00:00]} Qe7 {[%emt 0:00:00]} 31. g5 {[%emt 0:
00:00]} f5 {[%emt 0:00:00]} 32. gxf6 {[%emt 0:00:00]} Bxf6 {[%emt 0:00:00]} 33.
h5 {[%emt 0:00:00]} g5 {[%emt 0:00:00]} 34. Nh2 {[%emt 0:00:00]} Bg7 {[%emt 0:
00:00]} 35. f3 {[%emt 0:00:00]} Rf8 {[%emt 0:00:00]} 36. Kf2 {[%emt 0:00:00]}
Rf4 {[%emt 0:00:00]} 37. Ng4 {[%emt 0:00:00]} Qf8 {[%emt 0:00:00]} 38. Kg2 {
[%emt 0:00:00]} Re7 {[%emt 0:00:00]} 39. Rf2 {[%emt 0:00:00]} Ref7 {[%emt 0:00:
00]} 40. Nd2 {[%emt 0:00:00]} Rxg4+ {[%emt 0:00:00]} 41. Kh3 {[%emt 0:00:00]}
Rh4+ {[%emt 0:00:00]} 42. Kg3 {[%emt 0:00:00]} Qc8 {[%emt 0:00:00]} 43. Rh2 {
[%emt 0:00:00]} e4 {[%emt 0:00:00]} 44. Nxe4 {[%emt 0:00:00]} Qc7+ {[%emt 0:00:
00]} 0-1

[Event "Open international de Salon de Provence"]
[Site "Salon de Provence, France"]
[Date "2024.07.09"]
[Round "6.1"]
[White "Gusain, Himal"]
[Black "Petrosyan, Armen"]
[Result "1-0"]
[WhiteElo "2490"]
[BlackElo "2358"]
[PlyCount "73"]
[EventDate "2024.??.??"]
[TimeControl "1"]

1. e4 {[%emt 0:00:00]} c6 {[%emt 0:00:00]} 2. d4 {[%emt 0:00:00]} d5 {[%emt 0:
00:00]} 3. e5 {[%emt 0:00:00]} Bf5 {[%emt 0:00:00]} 4. h4 {[%emt 0:00:00]} h5 {
[%emt 0:00:00]} 5. Bd3 {[%emt 0:00:00]} Bxd3 {[%emt 0:00:00]} 6. Qxd3 {[%emt 0:
00:00]} Qa5+ {[%emt 0:00:00]} 7. Nd2 {[%emt 0:00:00]} e6 {[%emt 0:00:00]} 8.
Ngf3 {[%emt 0:00:00]} Nh6 {[%emt 0:00:00]} 9. O-O {[%emt 0:00:00]} Nf5 {
[%emt 0:00:00]} 10. Nb3 {[%emt 0:00:00]} Qa6 {[%emt 0:00:00]} 11. Qd1 {[%emt 0:
00:00]} Be7 {[%emt 0:00:00]} 12. g3 {[%emt 0:00:00]} Nd7 {[%emt 0:00:00]} 13.
Bg5 {[%emt 0:00:00]} f6 {[%emt 0:00:00]} 14. Bf4 {[%emt 0:00:00]} Kf7 {[%emt 0:
00:00]} 15. Re1 {[%emt 0:00:00]} Rae8 {[%emt 0:00:00]} 16. c3 {[%emt 0:00:00]}
b6 {[%emt 0:00:00]} 17. Qc2 {[%emt 0:00:00]} Nf8 {[%emt 0:00:00]} 18. Bd2 {
[%emt 0:00:00]} Qc8 {[%emt 0:00:00]} 19. c4 {[%emt 0:00:00]} Ng6 {[%emt 0:00:
00]} 20. a4 {[%emt 0:00:00]} fxe5 {[%emt 0:00:00]} 21. dxe5 {[%emt 0:00:00]}
dxc4 {[%emt 0:00:00]} 22. Qxc4 {[%emt 0:00:00]} c5 {[%emt 0:00:00]} 23. Bg5 {
[%emt 0:00:00]} Qb7 {[%emt 0:00:00]} 24. Nbd2 {[%emt 0:00:00]} Rd8 {[%emt 0:00:
00]} 25. Bxe7 {[%emt 0:00:00]} Kxe7 {[%emt 0:00:00]} 26. Ne4 {[%emt 0:00:00]}
Nd4 {[%emt 0:00:00]} 27. Nxd4 {[%emt 0:00:00]} Rxd4 {[%emt 0:00:00]} 28. Qe2 {
[%emt 0:00:00]} Qd5 {[%emt 0:00:00]} 29. a5 {[%emt 0:00:00]} Nxe5 {[%emt 0:00:
00]} 30. Ng5 {[%emt 0:00:00]} Nd3 {[%emt 0:00:00]} 31. Qxe6+ {[%emt 0:00:00]}
Qxe6 {[%emt 0:00:00]} 32. Rxe6+ {[%emt 0:00:00]} Kd7 {[%emt 0:00:00]} 33. axb6
{[%emt 0:00:00]} Ra8 {[%emt 0:00:00]} 34. Rg6 {[%emt 0:00:00]} Nxb2 {[%emt 0:
00:00]} 35. Ne6 {[%emt 0:00:00]} Rd6 {[%emt 0:00:00]} 36. Rxa7+ {[%emt 0:00:00]
} Rxa7 {[%emt 0:00:00]} 37. Nxc5+ {[%emt 0:00:00]} 1-0

[Event "Open international de Salon de Provence"]
[Site "Salon de Provence, France"]
[Date "2024.07.09"]
[Round "6.2"]
[White "Nikolov, Momchil"]
[Black "Enchev, Ivajlo"]
[Result "1/2-1/2"]
[WhiteElo "2460"]
[BlackElo "2416"]
[PlyCount "79"]
[EventDate "2024.??.??"]
[TimeControl "1"]

1. e4 {[%emt 0:00:00]} e5 {[%emt 0:00:00]} 2. d4 {[%emt 0:00:00]} exd4 {
[%emt 0:00:00]} 3. Qxd4 {[%emt 0:00:00]} Nc6 {[%emt 0:00:00]} 4. Qe3 {[%emt 0:
00:00]} Nf6 {[%emt 0:00:00]} 5. Nc3 {[%emt 0:00:00]} Bb4 {[%emt 0:00:00]} 6.
Bd2 {[%emt 0:00:00]} O-O {[%emt 0:00:00]} 7. O-O-O {[%emt 0:00:00]} Re8 {
[%emt 0:00:00]} 8. Bc4 {[%emt 0:00:00]} d6 {[%emt 0:00:00]} 9. f3 {[%emt 0:00:
00]} Be6 {[%emt 0:00:00]} 10. Bxe6 {[%emt 0:00:00]} Rxe6 {[%emt 0:00:00]} 11.
Nge2 {[%emt 0:00:00]} Bc5 {[%emt 0:00:00]} 12. Qf4 {[%emt 0:00:00]} d5 {
[%emt 0:00:00]} 13. exd5 {[%emt 0:00:00]} Nxd5 {[%emt 0:00:00]} 14. Qc4 {
[%emt 0:00:00]} Nxc3 {[%emt 0:00:00]} 15. Nxc3 {[%emt 0:00:00]} Bb6 {[%emt 0:
00:00]} 16. Rhe1 {[%emt 0:00:00]} Qd4 {[%emt 0:00:00]} 17. Qxd4 {[%emt 0:00:00]
} Nxd4 {[%emt 0:00:00]} 18. Rxe6 {[%emt 0:00:00]} Nxe6 {[%emt 0:00:00]} 19. Nd5
{[%emt 0:00:00]} f6 {[%emt 0:00:00]} 20. Nxb6 {[%emt 0:00:00]} axb6 {[%emt 0:
00:00]} 21. a3 {[%emt 0:00:00]} Rd8 {[%emt 0:00:00]} 22. Be3 {[%emt 0:00:00]}
Rxd1+ {[%emt 0:00:00]} 23. Kxd1 {[%emt 0:00:00]} Kf7 {[%emt 0:00:00]} 24. a4 {
[%emt 0:00:00]} Ke7 {[%emt 0:00:00]} 25. Ke2 {[%emt 0:00:00]} Kd6 {[%emt 0:00:
00]} 26. b4 {[%emt 0:00:00]} f5 {[%emt 0:00:00]} 27. Kd3 {[%emt 0:00:00]} Kd5 {
[%emt 0:00:00]} 28. Bd2 {[%emt 0:00:00]} g6 {[%emt 0:00:00]} 29. c4+ {[%emt 0:
00:00]} Kd6 {[%emt 0:00:00]} 30. Bc1 {[%emt 0:00:00]} c5 {[%emt 0:00:00]} 31.
b5 {[%emt 0:00:00]} Kd7 {[%emt 0:00:00]} 32. Be3 {[%emt 0:00:00]} Kd6 {[%emt 0:
00:00]} 33. Bd2 {[%emt 0:00:00]} Kd7 {[%emt 0:00:00]} 34. g3 {[%emt 0:00:00]}
Kd6 {[%emt 0:00:00]} 35. Bc3 {[%emt 0:00:00]} Ng5 {[%emt 0:00:00]} 36. Ke3 {
[%emt 0:00:00]} Ne6 {[%emt 0:00:00]} 37. Bf6 {[%emt 0:00:00]} Kd7 {[%emt 0:00:
00]} 38. Be5 {[%emt 0:00:00]} Nd8 {[%emt 0:00:00]} 39. g4 {[%emt 0:00:00]} Ne6
{[%emt 0:00:00]} 40. h3 {[%emt 0:00:00]} 1/2-1/2

[Event "Open international de Salon de Provence"]
[Site "Salon de Provence, France"]
[Date "2024.07.09"]
[Round "6.3"]
[White "Dimitrov, Radoslav"]
[Black "Philippe, Guillaume"]
[Result "1/2-1/2"]
[WhiteElo "2480"]
[BlackElo "2359"]
[PlyCount "160"]
[EventDate "2024.??.??"]
[TimeControl "1"]

1. e4 {[%emt 0:00:00]} c5 {[%emt 0:00:00]} 2. b3 {[%emt 0:00:00]} d6 {[%emt 0:
00:00]} 3. Bb2 {[%emt 0:00:00]} Nf6 {[%emt 0:00:00]} 4. Bb5+ {[%emt 0:00:00]}
Bd7 {[%emt 0:00:00]} 5. Bxd7+ {[%emt 0:00:00]} Qxd7 {[%emt 0:00:00]} 6. d3 {
[%emt 0:00:00]} Nc6 {[%emt 0:00:00]} 7. Ne2 {[%emt 0:00:00]} e6 {[%emt 0:00:00]
} 8. O-O {[%emt 0:00:00]} Be7 {[%emt 0:00:00]} 9. Nd2 {[%emt 0:00:00]} O-O {
[%emt 0:00:00]} 10. Ng3 {[%emt 0:00:00]} d5 {[%emt 0:00:00]} 11. f4 {[%emt 0:
00:00]} dxe4 {[%emt 0:00:00]} 12. Ndxe4 {[%emt 0:00:00]} Nxe4 {[%emt 0:00:00]}
13. dxe4 {[%emt 0:00:00]} Qxd1 {[%emt 0:00:00]} 14. Rfxd1 {[%emt 0:00:00]} Rfd8
{[%emt 0:00:00]} 15. c3 {[%emt 0:00:00]} Rxd1+ {[%emt 0:00:00]} 16. Rxd1 {
[%emt 0:00:00]} Rd8 {[%emt 0:00:00]} 17. Rxd8+ {[%emt 0:00:00]} Bxd8 {[%emt 0:
00:00]} 18. Nf1 {[%emt 0:00:00]} c4 {[%emt 0:00:00]} 19. Kf2 {[%emt 0:00:00]}
cxb3 {[%emt 0:00:00]} 20. axb3 {[%emt 0:00:00]} f5 {[%emt 0:00:00]} 21. Kf3 {
[%emt 0:00:00]} Kf7 {[%emt 0:00:00]} 22. Ne3 {[%emt 0:00:00]} g6 {[%emt 0:00:
00]} 23. c4 {[%emt 0:00:00]} Bb6 {[%emt 0:00:00]} 24. Nc2 {[%emt 0:00:00]} Na5
{[%emt 0:00:00]} 25. Na1 {[%emt 0:00:00]} Nc6 {[%emt 0:00:00]} 26. Bc3 {
[%emt 0:00:00]} Bc5 {[%emt 0:00:00]} 27. Nc2 {[%emt 0:00:00]} a5 {[%emt 0:00:
00]} 28. h3 {[%emt 0:00:00]} Ke7 {[%emt 0:00:00]} 29. g4 {[%emt 0:00:00]} Kd6 {
[%emt 0:00:00]} 30. Bg7 {[%emt 0:00:00]} Nb4 {[%emt 0:00:00]} 31. Ne3 {[%emt 0:
00:00]} Bxe3 {[%emt 0:00:00]} 32. Kxe3 {[%emt 0:00:00]} Nc6 {[%emt 0:00:00]}
33. Bf8+ {[%emt 0:00:00]} Kc7 {[%emt 0:00:00]} 34. Ba3 {[%emt 0:00:00]} Kb6 {
[%emt 0:00:00]} 35. gxf5 {[%emt 0:00:00]} gxf5 {[%emt 0:00:00]} 36. exf5 {
[%emt 0:00:00]} exf5 {[%emt 0:00:00]} 37. Kd3 {[%emt 0:00:00]} Ka6 {[%emt 0:00:
00]} 38. Bd6 {[%emt 0:00:00]} b6 {[%emt 0:00:00]} 39. Kc3 {[%emt 0:00:00]} Kb7
{[%emt 0:00:00]} 40. Ba3 {[%emt 0:00:00]} Kc7 {[%emt 0:00:00]} 41. Bc1 {
[%emt 0:00:00]} Kb7 {[%emt 0:00:00]} 42. Be3 {[%emt 0:00:00]} Ka6 {[%emt 0:00:
00]} 43. Kb2 {[%emt 0:00:00]} Nb4 {[%emt 0:00:00]} 44. Kc3 {[%emt 0:00:00]} Nc6
{[%emt 0:00:00]} 45. Bc1 {[%emt 0:00:00]} Kb7 {[%emt 0:00:00]} 46. Ba3 {
[%emt 0:00:00]} Ka6 {[%emt 0:00:00]} 47. b4 {[%emt 0:00:00]} axb4+ {[%emt 0:00:
00]} 48. Bxb4 {[%emt 0:00:00]} Kb7 {[%emt 0:00:00]} 49. Bf8 {[%emt 0:00:00]}
Ka6 {[%emt 0:00:00]} 50. Bd6 {[%emt 0:00:00]} Kb7 {[%emt 0:00:00]} 51. Ba3 {
[%emt 0:00:00]} Ka6 {[%emt 0:00:00]} 52. Bb2 {[%emt 0:00:00]} Kb7 {[%emt 0:00:
00]} 53. Kb3 {[%emt 0:00:00]} Ka6 {[%emt 0:00:00]} 54. Kc3 {[%emt 0:00:00]} Kb7
{[%emt 0:00:00]} 55. Bc1 {[%emt 0:00:00]} Ka6 {[%emt 0:00:00]} 56. Bd2 {
[%emt 0:00:00]} Kb7 {[%emt 0:00:00]} 57. Be1 {[%emt 0:00:00]} Ka6 {[%emt 0:00:
00]} 58. Bf2 {[%emt 0:00:00]} Kb7 {[%emt 0:00:00]} 59. Be3 {[%emt 0:00:00]} Ka6
{[%emt 0:00:00]} 60. Kb3 {[%emt 0:00:00]} Na5+ {[%emt 0:00:00]} 61. Kb4 {
[%emt 0:00:00]} Nc6+ {[%emt 0:00:00]} 62. Ka4 {[%emt 0:00:00]} Na5 {[%emt 0:00:
00]} 63. Kb4 {[%emt 0:00:00]} Nc6+ {[%emt 0:00:00]} 64. Kc3 {[%emt 0:00:00]}
Kb7 {[%emt 0:00:00]} 65. Bf2 {[%emt 0:00:00]} Ka6 {[%emt 0:00:00]} 66. Bh4 {
[%emt 0:00:00]} Kb7 {[%emt 0:00:00]} 67. Be1 {[%emt 0:00:00]} Ka6 {[%emt 0:00:
00]} 68. Bd2 {[%emt 0:00:00]} Kb7 {[%emt 0:00:00]} 69. Kb3 {[%emt 0:00:00]} Ka6
{[%emt 0:00:00]} 70. Ka4 {[%emt 0:00:00]} Nd4 {[%emt 0:00:00]} 71. Be3 {
[%emt 0:00:00]} Nc6 {[%emt 0:00:00]} 72. Kb3 {[%emt 0:00:00]} Na5+ {[%emt 0:00:
00]} 73. Kc3 {[%emt 0:00:00]} Nc6 {[%emt 0:00:00]} 74. Bg1 {[%emt 0:00:00]} Kb7
{[%emt 0:00:00]} 75. Bf2 {[%emt 0:00:00]} Ka6 {[%emt 0:00:00]} 76. Kd3 {
[%emt 0:00:00]} Ka5 {[%emt 0:00:00]} 77. Kc3 {[%emt 0:00:00]} Ka6 {[%emt 0:00:
00]} 78. Be1 {[%emt 0:00:00]} Kb7 {[%emt 0:00:00]} 79. Bd2 {[%emt 0:00:00]} Ka6
{[%emt 0:00:00]} 80. Be1 {[%emt 0:00:00]} Kb7 {[%emt 0:00:00]} 1/2-1/2

[Event "Open international de Salon de Provence"]
[Site "Salon de Provence, France"]
[Date "2024.07.09"]
[Round "6.4"]
[White "Lalic, Bogdan"]
[Black "Bedhouche, Rayan"]
[Result "1-0"]
[WhiteElo "2358"]
[BlackElo "2006"]
[PlyCount "61"]
[EventDate "2024.??.??"]
[TimeControl "1"]

1. Nf3 {[%emt 0:00:00]} Nf6 {[%emt 0:00:00]} 2. c4 {[%emt 0:00:00]} g6 {
[%emt 0:00:00]} 3. Nc3 {[%emt 0:00:00]} Bg7 {[%emt 0:00:00]} 4. e4 {[%emt 0:00:
00]} d6 {[%emt 0:00:00]} 5. d4 {[%emt 0:00:00]} O-O {[%emt 0:00:00]} 6. Be2 {
[%emt 0:00:00]} e5 {[%emt 0:00:00]} 7. O-O {[%emt 0:00:00]} Nc6 {[%emt 0:00:00]
} 8. d5 {[%emt 0:00:00]} Ne7 {[%emt 0:00:00]} 9. b4 {[%emt 0:00:00]} Nd7 {
[%emt 0:00:00]} 10. a4 {[%emt 0:00:00]} a5 {[%emt 0:00:00]} 11. Ba3 {[%emt 0:
00:00]} h6 {[%emt 0:00:00]} 12. bxa5 {[%emt 0:00:00]} Rxa5 {[%emt 0:00:00]} 13.
Bb4 {[%emt 0:00:00]} Ra8 {[%emt 0:00:00]} 14. a5 {[%emt 0:00:00]} f5 {[%emt 0:
00:00]} 15. Nd2 {[%emt 0:00:00]} Nf6 {[%emt 0:00:00]} 16. c5 {[%emt 0:00:00]}
dxc5 {[%emt 0:00:00]} 17. Bxc5 {[%emt 0:00:00]} Re8 {[%emt 0:00:00]} 18. Qb3 {
[%emt 0:00:00]} Kh8 {[%emt 0:00:00]} 19. Rfd1 {[%emt 0:00:00]} Nd7 {[%emt 0:00:
00]} 20. Ba3 {[%emt 0:00:00]} b6 {[%emt 0:00:00]} 21. axb6 {[%emt 0:00:00]}
Nxb6 {[%emt 0:00:00]} 22. Nb5 {[%emt 0:00:00]} fxe4 {[%emt 0:00:00]} 23. d6 {
[%emt 0:00:00]} Ned5 {[%emt 0:00:00]} 24. dxc7 {[%emt 0:00:00]} Qh4 {[%emt 0:
00:00]} 25. g3 {[%emt 0:00:00]} Qh3 {[%emt 0:00:00]} 26. Bf1 {[%emt 0:00:00]}
Qg4 {[%emt 0:00:00]} 27. Nd6 {[%emt 0:00:00]} Re7 {[%emt 0:00:00]} 28. Nxc8 {
[%emt 0:00:00]} Nxc8 {[%emt 0:00:00]} 29. Qxd5 {[%emt 0:00:00]} Rxa3 {[%emt 0:
00:00]} 30. Rxa3 {[%emt 0:00:00]} Qxd1 {[%emt 0:00:00]} 31. Ra8 {[%emt 0:00:00]
} 1-0

[Event "Open international de Salon de Provence"]
[Site "Salon de Provence, France"]
[Date "2024.07.09"]
[Round "6.5"]
[White "Biard, Noah"]
[Black "Rival, None"]
[Result "0-1"]
[WhiteElo "1574"]
[BlackElo "1640"]
[PlyCount "56"]
[EventDate "2024.??.??"]
[TimeControl "1"]

1. e4 {[%emt 0:00:00]} c5 {[%emt 0:00:00]} 2. Nf3 {[%emt 0:00:00]} Nc6 {
[%emt 0:00:00]} 3. d4 {[%emt 0:00:00]} cxd4 {[%emt 0:00:00]} 4. Nxd4 {[%emt 0:
00:00]} Nf6 {[%emt 0:00:00]} 5. Nc3 {[%emt 0:00:00]} e5 {[%emt 0:00:00]} 6.
Ndb5 {[%emt 0:00:00]} d6 {[%emt 0:00:00]} 7. Bg5 {[%emt 0:00:00]} a6 {[%emt 0:
00:00]} 8. Na3 {[%emt 0:00:00]} b5 {[%emt 0:00:00]} 9. Nd5 {[%emt 0:00:00]} Be7
{[%emt 0:00:00]} 10. Bxf6 {[%emt 0:00:00]} Bxf6 {[%emt 0:00:00]} 11. c4 {
[%emt 0:00:00]} b4 {[%emt 0:00:00]} 12. Nc2 {[%emt 0:00:00]} O-O {[%emt 0:00:
00]} 13. Be2 {[%emt 0:00:00]} a5 {[%emt 0:00:00]} 14. O-O {[%emt 0:00:00]} Bg5
{[%emt 0:00:00]} 15. f4 {[%emt 0:00:00]} Bxf4 {[%emt 0:00:00]} 16. Nxf4 {
[%emt 0:00:00]} exf4 {[%emt 0:00:00]} 17. Rxf4 {[%emt 0:00:00]} Qg5 {[%emt 0:
00:00]} 18. Rf3 {[%emt 0:00:00]} Qc5+ {[%emt 0:00:00]} 19. Kh1 {[%emt 0:00:00]}
Ne5 {[%emt 0:00:00]} 20. Rg3 {[%emt 0:00:00]} f5 {[%emt 0:00:00]} 21. exf5 {
[%emt 0:00:00]} Rxf5 {[%emt 0:00:00]} 22. Nd4 {[%emt 0:00:00]} Rf2 {[%emt 0:00:
00]} 23. Nf3 {[%emt 0:00:00]} Bb7 {[%emt 0:00:00]} 24. Nd4 {[%emt 0:00:00]} Rf6
{[%emt 0:00:00]} 25. Bd3 {[%emt 0:00:00]} Raf8 {[%emt 0:00:00]} 26. Nb3 {
[%emt 0:00:00]} Nxd3 {[%emt 0:00:00]} 27. Qxd3 {[%emt 0:00:00]} Qf2 {[%emt 0:
00:00]} 28. Nd2 {[%emt 0:00:00]} Qxd2 {[%emt 0:00:00]} 0-1